Cogmind - Beta 17 @@@ ROGUE MODE // 2026.07.29 @ 04:08:48 Player: ChCbias Result: Destroyed by Y-45 Defender with Beam Rifle Performance ------------- Evolutions (0) 0 Regions Visited (2) 400 Robots Destroyed (15) 75 Value Destroyed (502) 502 Prototype IDs (2) 40 Alien Tech Used (0) 0 Bonus (0) 0 TOTAL SCORE: 1017 Bonus ------- None Cogmind --------- Core Integrity 0/250 Matter 297/300 Energy 100/100 System Corruption 0% Temperature Cool (9) Movement Treading (240) Ox1 Location -10/Subcaves Parts ------- > --- POWER (1) -------- (None) > --- PROPULSION (2) --- Light Treads > --- UTILITY (2) ------ Large Storage Unit Structural Scanner > --- WEAPON (2) ------- Assault Rifle Heavy Hammer > --- INVENTORY (15) --- Ion Engine Light Nuclear Core Light Treads Wheel Wheel Improved Heat Sink Medium Laser Small Laser Small Laser Small Laser Particle Gun Assault Rifle Mini Grenade Launcher Mining Claw Peak State ------------ > --- POWER ------------ Light Ion Engine > --- PROPULSION ------- Light Treads Light Treads > --- UTILITY ---------- Large Storage Unit Structural Scanner > --- WEAPON ----------- Assault Rifle Heavy Hammer > --- INVENTORY -------- Ion Engine Light Nuclear Core Light Treads Wheel Wheel Improved Heat Sink Medium Laser Small Laser Small Laser Small Laser Particle Gun Assault Rifle Mini Grenade Launcher Mining Claw [Rating: 10] Favorites ----------- Power Ion Engine Engine Ion Engine Propulsion Light Treads Treads Light Treads Utility Structural Scanner Device Structural Scanner Storage Large Storage Unit Weapon Assault Rifle Energy Gun Small Laser Ballistic Gun Assault Rifle Impact Weapon Heavy Hammer Build | -11 -10 -10 ------- Run | Yrd Mat Sub Slots Evolved . | . . . Power . | . . . Propulsion . | . . . Utility . | . . . Weapon . | . . . Parts Attached 11 | 6 5 . Power 2 | 1 1 . Engine 2 | 1 1 . Core . | . . . Reactor . | . . . Propulsion 2 | 2 . . Treads 2 | 2 . . Leg . | . . . Wheel . | . . . Hover . | . . . Flight . | . . . Utility 3 | 1 2 . Device 1 | . 1 . Storage 2 | 1 1 . Processor . | . . . Hackware . | . . . Protection . | . . . Artifact . | . . . Weapon 4 | 2 2 . Energy Gun 1 | . 1 . Energy Cannon . | . . . Ballistic Gun 2 | 2 . . Ballistic Cannon . | . . . Launcher . | . . . Special Weapon . | . . . Impact Weapon 1 | . 1 . Slashing Weapon . | . . . Piercing Weapon . | . . . Special Melee Weapon . | . . . Unidentified Prototypes . | . . . Parts Lost 4 | . 2 2 Power 2 | . 1 1 Propulsion 1 | . . 1 Utility . | . . . Weapon 1 | . 1 . Highest Loss Streak 2 | . 1 2 To Critical Strikes . | . . . Average Backups 10 | 2 10 14 Power 1 | . 1 2 Propulsion 4 | 1 4 3 Utility . | . . 1 Weapon 4 | . 4 8 Tool/Special . | . . . Unused Backups 15 | . 2 13 Power 2 | . . 2 Propulsion 5 | . 2 3 Utility 1 | . . 1 Weapon 7 | . . 7 Tool/Special . | . . . Average Slot Usage (%) 97 | . 97 98 Engine 13 | . 14 13 Treads 27 | . 27 27 Device 12 | . 12 14 Storage 14 | . 14 14 Energy Gun 4 | . 5 3 Ballistic Gun 18 | . 19 14 Impact Weapon 4 | . 2 10 Peak Build Rating 10 | 6 9 10 Average Rating 8 | 4 8 9 On Entrance 5 | . 6 9 Avg Prop Armor Cover (%) . | . . . Naked Turns . | . . . Heaviest Build 31 | 14 31 29 Greatest Support 40 | 40 40 40 Greatest Overweight (x) 1 | . . 1 Average Overweight (x) . | . . . Largest Inventory Capacity 15 | 8 15 15 Average Capacity 13 | 7 13 15 Most Carried 14 | 6 14 14 Average Carried 10 | 2 10 14 Final Capacity 15 | 8 15 15 Final Carried 14 | 6 14 14 Class Distribution -------------------- 100% | Mutant Dominant Class ---------------- Mutant | -10/Materials Mutant | -10/Subcaves Resources | -11 -10 -10 ----------- Run | Yrd Mat Sub Matter Collected 636 | 260 366 10 Remotely . | . . . Salvage Created 548 | . 548 . Parts 31 | . 31 . Haulers Intercepted . | . . . Recyclers Shooed . | . . . Parts Field Recycled . | . . . Retrieved Matter . | . . . Parts Self-Destructed . | . . . Prevented . | . . . Parts Restored . | . . . Kills | -11 -10 -10 ------- Run | Yrd Mat Sub Combat Hostiles Destroyed 12 | . 12 . Guns 11 | . 11 . Classes Destroyed 3 | . 3 . Mechanic 1 | . 1 . Watcher 2 | . 2 . Grunt 12 | . 12 . Best Kill Streak 6 | . 6 . Combat Bots Only 6 | . 6 . Max Kills in Single Turn 1 | . 1 . Gunslinging . | . . . Exploded . | . . . Melee . | . . . Uniques/NPCs Destroyed . | . . . Combat | -11 -10 -10 -------- Run | Yrd Mat Sub Hostile Shots Fired 112 | . 97 15 Missed 24 | . 21 3 Hits 88 | . 76 12 Projectile 88 | . 76 12 Critical Strikes 3 | . 1 2 Damage Taken 1071 | . 899 172 Core 251 | . 207 44 Absorbed by Shields . | . . . Regen/Repaired (Parts) 262 | . 262 . Core Remaining (%) 100 | 100 . . Volleys Fired 57 | . 56 1 Largest 2 | . 2 1 Hottest 60 | . 60 20 Shots Fired 113 | . 112 1 Gun 113 | . 112 1 Cannon . | . . . Launcher . | . . . Special . | . . . Kinetic 97 | . 96 1 Thermal 16 | . 16 . Explosive . | . . . Electromagnetic . | . . . Robot Hit Streak 12 | . 12 . Robot Miss Streak 3 | . 3 1 Penetration Max . | . . . Secondary Targets 3 | . 3 . Max Gunslinging Chain 1 | . 1 . Shots Hit Robots 88 | . 82 6 Core Hits 30 | . 29 1 Critical Kills . | . . . Critical Parts Destroyed 2 | . 1 1 Critical Strikes 3 | . 1 2 Destroy 1 | . 1 . Smash 2 | . . 2 Melee Attacks 20 | . 11 9 Impact 20 | . 11 9 Slashing . | . . . Piercing . | . . . Sneak Attacks . | . . . Combat Hostiles . | . . . Follow-up Attacks . | . . . Damage Inflicted 1319 | . 1158 161 Guns 958 | . 958 . Cannons . | . . . Explosions . | . . . Melee 351 | . 190 161 Ramming 10 | . 10 . Kinetic 817 | . 817 . Thermal 141 | . 141 . Explosive . | . . . Electromagnetic . | . . . Impact 351 | . 190 161 Slashing . | . . . Piercing . | . . . Highest Corruption . | . . . Average Corruption . | . . . Corruption Purged . | . . . Corruption Blocked . | . . . Overload Shots . | . . . Overflow Damage 54 | . 15 39 Projectiles . | . . . Explosions . | . . . Melee 54 | . 15 39 Knockbacks 2 | . 2 . Impact 2 | . 2 . Kinetic . | . . . Secondary . | . . . Self-Inflicted Damage . | . . . Shots . | . . . Rammed 2 | . 2 . Targets Rammed 2 | . 2 . Kicked . | . . . Crushed . | . . . Highest Temperature 131 | . 131 . Average Temperature 56 | . 56 . Received Heat Transfer 600 | . 501 99 Siege Activations . | . . . Martial Activations . | . . . Shielding Activations . | . . . Robots Disrupted . | . . . Combat Hostiles . | . . . Robots Corrupted 1 | . 1 . Combat Hostiles 1 | . 1 . Parts Fried 1 | . 1 . Impact Corruptions 2 | . 1 1 Robots Melted . | . . . Combat Hostiles . | . . . Parts Melted . | . . . Heat Transferred 325 | . 325 . Parts Sabotaged . | . . . Parts Stolen . | . . . Parts Stripped . | . . . Power Chain Reactions . | . . . Alert | -11 -10 -10 ------- Run | Yrd Mat Sub Maximum Alert Level . | . . . Low Security (%) 100 | 100 100 . Level 1 . | . . . Level 2 . | . . . Level 3 . | . . . Level 4 . | . . . Level 5 . | . . . High Security . | . . . Max Security . | . . . Peak Influence 160 | . 160 . Initial . | . . . Average 38 | . 41 . Influence Increases 350 | . 350 . Destroy 0b10 Robot/C 240 | . 240 . Destroy 0b10 Robot/NC 15 | . 15 . Destroy Leader 64 | . 64 . Successful Hack 11 | . 11 . Disable Machine 15 | . 15 . Destroy Structure 5 | . 5 . Influence Decreases 350 | . 350 . Time Decay 330 | . 330 . Lost Part 20 | . 20 . Squads Dispatched 3 | . 3 . Investigation 2 | . 2 . Extermination . | . . . Reinforcement 1 | . 1 . Assault . | . . . Garrison . | . . . Intercept . | . . . Searches Triggered . | . . . Construction Impeded . | . . . Haulers Reinforced . | . . . Active Scanning Responses . | . . . Cargo Convoy Interrupts . | . . . Stealth | -11 -10 -10 --------- Run | Yrd Mat Sub Distress Signals 2 | . 2 . Communications Jammed . | . . . Distress Signals . | . . . Times Spotted 26 | . 25 1 Peak Tracking Total 7 | . 7 1 Tactical Retreats . | . . . Traps | -11 -10 -10 ------- Run | Yrd Mat Sub Traps Triggered 1 | . 1 . Indirectly . | . . . Trap Hack Attempts . | . . . Triggered . | . . . Disarmed . | . . . Reprogrammed . | . . . Reused . | . . . Traps Extracted . | . . . Installed . | . . . Triggered . | . . . Machines | -11 -10 -10 ---------- Run | Yrd Mat Sub Machines Disabled 1 | . 1 . Max in Single Turn 1 | . 1 . Machines Repaired . | . . . Machines Dismantled . | . . . Machines Sabotaged . | . . . Overloaded Fab Kills . | . . . Hacking | -11 -10 -10 --------- Run | Yrd Mat Sub Machines Accessed 7 | . 7 . Terminals 4 | . 4 . Fabricators . | . . . Repair Stations 1 | . 1 . Recycling Units 2 | . 2 . Scanalyzers . | . . . Garrison Access . | . . . Total Hacks 19 | . 19 . Successful 15 | . 15 . Failed 4 | . 4 . Catastrophic . | . . . Database Lockouts . | . . . Manual 6 | . 6 . Terminals 10 | . 10 . Fabricators . | . . . Repair Stations 6 | . 6 . Recycling Units 3 | . 3 . Scanalyzers . | . . . Garrison Access . | . . . Terminal Hacks 3 | . 3 . Record 1 | . 1 . Prototype ID Bank 1 | . 1 . Hauler Manifests 1 | . 1 . Fabricator Hacks . | . . . Repair Station Hacks 6 | . 6 . Scan Component 3 | . 3 . Repair 3 | . 3 . Recycling Unit Hacks 1 | . 1 . Retrieve Components 1 | . 1 . Scanalyzer . | . . . Garrison Access Hacks . | . . . Unauthorized Hacks 5 | . 5 . Terminals 3 | . 3 . Botnet 3 | . 3 . Fabricators . | . . . Repair Stations . | . . . Recycling Units 2 | . 2 . Reject 2 | . 2 . Scanalyzers . | . . . Garrison Access . | . . . Data Cores Recovered . | . . . Used . | . . . Hacking Detections 5 | . 5 . Full Trace Events 2 | . 2 . Feedback Events . | . . . Feedback Blocked . | . . . Robot Schematics Acquired . | . . . Robots Built . | . . . Authchips . | . . . Time . | . . . Total Robot Build Rating . | . . . Part Schematics Acquired . | . . . Parts Built . | . . . Authchips . | . . . Time . | . . . Total Part Build Rating . | . . . Part Studies Acquired . | . . . Parts Repaired 3 | . 3 . Time 78 | . 78 . Parts Recycled . | . . . Recycled Matter . | . . . Retrieved Matter . | . . . Retrieved Components 10 | . 10 . Parts Scanalyzed . | . . . Part Schematics Acquired . | . . . Parts Damaged . | . . . Bothacking | -11 -10 -10 ------------ Run | Yrd Mat Sub Used RIF Installer . | . . . Robots Hacked . | . . . Non-combat . | . . . Combat . | . . . Robot Hacks Applied . | . . . Relay Couplers Released . | . . . Fabnet Peak Effective % . | . . . Robots Rewired . | . . . Allies Hacked . | . . . Hacks Repelled . | . . . Allies | -11 -10 -10 -------- Run | Yrd Mat Sub Total Allies . | . . . Largest Group . | . . . Highest-Rated Group . | . . . Highest-Rated Ally . | . . . Total Orders . | . . . Ally Attacks . | . . . Total Damage . | . . . Kills . | . . . Allies Corrupted . | . . . Allies Melted . | . . . Intel | -11 -10 -10 ------- Run | Yrd Mat Sub Active Infowar (turns) 1546 | . 1242 304 Structural 1546 | . 1242 304 Robot Analysis Total . | . . . Derelict Logs Recovered 1 | . . 1 Drone Launches . | . . . Drone Recoveries . | . . . Exploration | -11 -10 -10 ------------- Run | Yrd Mat Sub Turns Passed 1797 | 97 1396 304 Spaces Moved 894 | 57 670 167 Core 7 | 7 . . Treads 887 | 50 670 167 Legs . | . . . Wheels . | . . . Hover . | . . . Flight . | . . . Fastest Speed 50 | 50 160 160 Average Speed 159 | 146 160 161 Slowest Speed 240 | 160 160 240 Overloaded Moves . | . . . Propulsion Burnouts . | . . . Robots Hopped . | . . . Potential Cave-ins . | . . . Cave-ins Triggered . | . . . Exploration Rate (%) 28 | 4 65 17 Regions Visited 2 Branch Regions 1 Pre-discovered Areas 1 | . . 1 Known Exits Taken . | . . . Unknown Exits Taken 2 | 1 1 . Scrap Searched . | . . . Spaces Dug 4 | . 4 . Terrain Destroyed 4 | . 4 . Melee 4 | . 4 . Projectile . | . . . AOE . | . . . Terrain Rammed . | . . . Walls Destroyed . | . . . Machines Disabled . | . . . Actions | -11 -10 -10 --------- Run | Yrd Mat Sub Total 1112 | 68 860 184 Wait 104 | . 98 6 Move 892 | 56 669 167 Hop . | . . . Pick Up 18 | 6 12 . Fast Attach 10 | 6 4 . Attach 2 | . 2 . Detach . | . . . Swap 4 | . 3 1 Drop 3 | . 3 . Fire 57 | . 56 1 Melee 20 | . 11 9 Ram . | . . . Kick . | . . . Crush 2 | . 2 . Escape Stasis . | . . . Rewire . | . . . Trap . | . . . Miscellaneous . | . . . Route ------- -11/Scrapyard -10/Materials (discovered 3 exits: [*Mat] / [*Min] / [*Sub]) -10/Subcaves History --------- Turn | Location | Event 16 | -11/Scrapyard | Discovered new exit (range 16) 98 | -11/Scrapyard | Entered Materials 319 | -10/Materials | Build established: Mutant 339 | -10/Materials | Discovered new exit (range 8) 368 | -10/Materials | Discovered new exit (range 14) 883 | -10/Materials | Discovered new exit (range 10) 969 | -10/Materials | Core integrity fell below 50% 1030 | -10/Materials | Repaired Lgt. Treads 1057 | -10/Materials | Repaired Assault Rifle 1085 | -10/Materials | Repaired Lgt. Treads 1112 | -10/Materials | Core integrity fell below 20% 1494 | -10/Materials | Entered Subcaves 1579 | -10/Subcaves | Learned location of Storage (-8) 1798 | -10/Subcaves | Destroyed by Y-45 Defender with Beam Rifle Last Messages --------------- 01346_ Acquired Sml. Laser. LOCATION=UNKNOWN AMBIENT_HEAT=-10 GOAL=ESCAPE 01511_ 8P-6VC(u) builds Twisted Machinery. 01563_ Acquired 5 matter. 01579_ Acquired derelict log, extracted data. World map updated: -8/Storage. 01615_ Acquired 5 matter. 01776_ Critical hit (Burn: +37). 01778_ Y-45 Defender suffers critical hit (Smash). 01779_ Lgt. Treads destroyed. 01786_ Critical hit (Burn: +37). 01788_ Y-45 Defender suffers critical hit (Smash). 01788_ Destroyed Lgt. Treads. 01788_ Y-45 Defender system corrupted by crushing effect. 01789_ Lgt. Ion Engine destroyed. Map ----- +----------------------------------------------------+ | ?????????????????????????????????????????????????? | | ?????????????????????????????????????????????????? | | ????????????????????????????????## ????????????? | | ????????????????????????????????## ??????????## | | ????????????????????????????????# ??????????## | | ????????????????????????????????? ???######?## | | ????????????????????????????????# ????######### | | ????????????????????????????###### ??? #### | | ????????????????????????????###### ###????? ### | | ????????????????????????????## ## ###?????? ### | | ????????????????????????????## ##??###### | | ????????????????????????????### ########## | | ?????????????????????????????## ###### ### | | ???????????????????????????###### #### | | ??????????????????????########### ##### | | ?????????????????????######## # # ###### | | ?????????????????????### ####### | | ?????????????????????## ### ## | | ?????????????????????## ## # | | ?????????????????????### ######## ## | | ?????????????????????### ######### ####### | | ????????????????????#### ########### ######## | | ????????????????????### ########### ###????? | | ????????????????????## ##?#### ##?????? | | ????????????????????### ####### ###?????? | | ?????????????????### # @ ###### ####?????? | | ?????????????????## ### ####??##### | | ?????????????????## Y ### ###???##### | | ?????????????????## ### ### ## ##????## | | ?????????????????## ### ### ##????## | | ?????????????????### ? ? #### ###????###% | | ?????????????????### ??? ##### ###????#### | | ?????????????????? ?? # ###?## ??????#### | | ?????????????????? ???## ###?### #???????### | | ?????????????????? ????### ##??######????????## | | ?????????????????????????#### ##???#####?????????# | | ?????????????????????????#### #?????????????????? | | ????????????????????????????? ##?????????????????? | | ?????????????????????????????###?????????????????? | | ?????????????????????????????###?????????????????? | | ?????????????????????????????????????????????????? | | ?????????????????????????????????????????????????? | | ?????????????????????????????????????????????????? | | ?????????????????????????????????????????????????? | | ?????????????????????????????????????????????????? | | ?????????????????????????????????????????????????? | | ?????????????????????????????????????????????????? | | ?????????????????????????????????????????????????? | | ?????????????????????????????????????????????????? | | ?????????????????????????????????????????????????? | +----------------------------------------------------+ Best States ------------- Heat Dissipation 25 Energy Generation 10 Energy Capacity 250 Matter Stores 300 Matter Capacity 300 Sight Range 16 Terrain Scan Density 10 Evasion (%) 40 Recoil Reduction 2 Item Schematics ----------------- None Robot Schematics ------------------ None Fabricated ------------ Nothing Repaired ---------- Lgt. Treads | 25% | -10/Materials Assault Rifle | 24% | -10/Materials Lgt. Treads | 41% | -10/Materials Studied --------- None Alien Tech Used ----------------- None Achievements -------------- None Challenges ------------ None Game ------ Seed GravmagJammingImpeller Manual? 0 Play Time 00:10:38 Cumulative 93.4 hours Start 2026.07.29 @ 03:57:22 End 2026.07.29 @ 04:08:48 Sessions 1 Manual Loads 0 Difficulty Rogue Special Mode None Game No. 58 Rogue 58 Adventurer 0 Explorer 0 Win Type - Total 1 Types 1/0/0/0/0/0/0/0/0/0 Lore% 57 Gallery% 47 Achievement% 44 Wizard Run 0 Options --------- Layout 1 ASCII 0 Keyboard 1 Movement Arrows Keybinds 0 Fullscreen 1 Font 24/Smallcaps Map View 50x35 Zoom Use 0% Tactical HUD 1 Map Filters NONE Filters NONE Steam 1 RUN: 3c105748-8d03-4edf-a6a7-9858131b4c5d